Cogmind - Beta 15 @@@ ROGUE MODE // 2025.06.23 @ 21:54:37 Player: 0Z-4NL Result: Self-destructed Performance ------------- Evolutions (2) 1000 Regions Visited (5) 1000 Robots Destroyed (17) 85 Value Destroyed (370) 370 Prototype IDs (3) 60 Alien Tech Used (0) 0 Bonus (531) 531 TOTAL SCORE: 3046 Bonus ------- No Salvage 531 Cogmind --------- Core Integrity 403/550 Matter 271/300 Energy 100/100 System Corruption 0% Temperature Cool (0) Movement Core (50) Location -8/Materials Parts ------- > --- POWER (1) -------- (None) > --- PROPULSION (5) --- Light Treads Improved VTOL Module > --- UTILITY (3) ------ Advanced Weight Redist. System Targeting Computer > --- WEAPON (2) ------- Light Assault Rifle > --- INVENTORY (5) ---- Light Ion Engine High-capacity Matter Pod (200) Grenade Launcher Maul Peak State ------------ > --- POWER ------------ (None) > --- PROPULSION ------- Light Treads Light Treads Improved VTOL Module > --- UTILITY ---------- Weight Redist. System Advanced Weight Redist. System Targeting Computer > --- WEAPON ----------- Light Assault Rifle Light Assault Rifle > --- INVENTORY -------- Light Ion Engine High-capacity Matter Pod Light Assault Rifle Grenade Launcher Maul [Rating: 14] Favorites ----------- Power None Propulsion Light Treads Treads Light Treads Flight Unit Improved VTOL Module Utility Seismic Detector Device Seismic Detector Processor Targeting Computer Weapon Light Assault Rifle Ballistic Gun Light Assault Rifle Launcher Grenade Launcher Impact Weapon Maul Build | -11 -10 -10 -10 -9 -8 ------- Run | Yrd Mat Min Exi Min Mat Slots Evolved 4 | . . . . . 4 Power . | . . . . . . Propulsion 3 | . . . . . 3 Utility 1 | . . . . . 1 Weapon . | . . . . . . Parts Attached 13 | 4 2 1 1 . 5 Power . | . . . . . . Engine . | . . . . . . Core . | . . . . . . Reactor . | . . . . . . Propulsion 3 | 2 . . . . 1 Treads 2 | 2 . . . . . Leg . | . . . . . . Wheel . | . . . . . . Hover . | . . . . . . Flight 1 | . . . . . 1 Utility 4 | . 2 . . . 2 Device 3 | . 1 . . . 2 Storage . | . . . . . . Processor 1 | . 1 . . . . Hackware . | . . . . . . Protection . | . . . . . . Artifact . | . . . . . . Weapon 6 | 2 . 1 1 . 2 Energy Gun . | . . . . . . Energy Cannon . | . . . . . . Ballistic Gun 3 | 2 . . . . 1 Ballistic Cannon . | . . . . . . Launcher 2 | . . 1 1 . . Special Weapon . | . . . . . . Impact Weapon 1 | . . . . . 1 Slashing Weapon . | . . . . . . Piercing Weapon . | . . . . . . Special Melee Weapon . | . . . . . . Unidentified Prototypes 1 | . . . . . 1 Parts Lost 3 | . . . . . 3 Power . | . . . . . . Propulsion 1 | . . . . . 1 Utility . | . . . . . . Weapon 2 | . . . . . 2 Highest Loss Streak 3 | . . . . . 3 To Critical Strikes . | . . . . . . Average Backups 4 | . 3 5 5 5 4 Power . | . . 1 1 1 1 Propulsion . | . . . . . . Utility . | . . 1 1 1 1 Weapon 2 | . 2 3 3 3 2 Tool/Special . | . . . . . . Unused Backups 2 | . . . . . 2 Power 1 | . . . . . 1 Propulsion . | . . . . . . Utility 1 | . . . . . 1 Weapon . | . . . . . . Tool/Special . | . . . . . . Average Slot Usage (%) 77 | . 77 85 85 85 60 Treads 26 | . 28 28 28 28 17 Flight 1 | . . . . . 8 Device 12 | . 13 14 14 14 7 Processor 10 | . 7 14 14 14 9 Ballistic Gun 24 | . 28 28 22 28 16 Launcher 1 | . . . 5 . . Peak Build Rating 14 | 4 6 6 6 6 14 Average Rating 6 | 2 5 6 6 6 11 On Entrance 4 | . 4 6 6 6 6 Naked Turns . | . . . . . . Heaviest Build 5 | 2 3 3 5 3 5 Greatest Support 40 | 20 40 3 3 3 40 Greatest Overweight (x) 1 | . . . 1 . 1 Average Overweight (x) . | . . . . . . Largest Inventory Capacity 5 | 5 5 5 5 5 5 Average Capacity 5 | 5 5 5 5 5 5 Most Carried 5 | . 5 5 5 5 5 Average Carried 4 | . 4 5 5 4 4 Final Capacity 5 | 5 5 5 5 5 5 Final Carried 5 | . 5 5 5 5 4 Class Distribution -------------------- 100% | Mutant Dominant Class ---------------- Mutant | -10/Materials Mutant | -10/Mines Mutant | -10/Exiles Mutant | -9/Mines Mutant | -8/Materials Resources | -11 -10 -10 -10 -9 -8 ----------- Run | Yrd Mat Min Exi Min Mat Matter Collected 666 | 240 197 56 . 100 73 Remotely . | . . . . . . Salvage Created 584 | . 197 31 . . 356 Parts . | . . . . . . Haulers Intercepted . | . . . . . . Recyclers Shooed . | . . . . . . Parts Field Recycled . | . . . . . . Retrieved Matter . | . . . . . . Parts Self-Destructed . | . . . . . . Prevented . | . . . . . . Kills | -11 -10 -10 -10 -9 -8 ------- Run | Yrd Mat Min Exi Min Mat Combat Hostiles Destroyed 8 | . 1 2 . . 5 Guns 7 | . 1 2 . . 4 AOE 1 | . . . . . 1 Classes Destroyed 7 | . 3 1 . . 3 Worker 3 | . . . . . 3 Recycler 3 | . 2 . . . 1 Operator 1 | . . . . . 1 Watcher 2 | . 2 . . . . Swarmer 2 | . . 2 . . . Grunt 2 | . 1 . . . 1 Sentry 4 | . . . . . 4 Best Kill Streak 6 | . 1 2 . . 6 Combat Bots Only 2 | . 1 2 . . 2 Max Kills in Single Turn 5 | . 1 1 . . 5 Gunslinging . | . . . . . . Exploded 1 | . . . . . 1 Melee . | . . . . . . Uniques/NPCs Destroyed . | . . . . . . Combat | -11 -10 -10 -10 -9 -8 -------- Run | Yrd Mat Min Exi Min Mat Hostile Shots Fired 48 | . 4 1 . . 43 Missed 9 | . 1 . . . 8 Hits 39 | . 3 1 . . 35 Projectile 39 | . 3 1 . . 35 Critical Strikes 3 | . . . . . 3 Damage Taken 691 | . 51 7 . . 633 Core 188 | . 41 . . . 147 Absorbed by Shields . | . . . . . . Core Remaining (%) 91 | 100 . . . 83 . Volleys Fired 59 | . 16 4 5 . 34 Largest 2 | . 2 2 1 . 2 Hottest 40 | . 40 40 30 . 40 Shots Fired 110 | . 32 7 5 . 66 Gun 104 | . 32 6 . . 66 Cannon . | . . . . . . Launcher 6 | . . 1 5 . . Special . | . . . . . . Kinetic 104 | . 32 6 . . 66 Thermal . | . . . . . . Explosive 6 | . . 1 5 . . Electromagnetic . | . . . . . . Robot Hit Streak 25 | . 6 10 . . 25 Robot Miss Streak 2 | . 2 . . . 2 Penetration Max . | . . . . . . Secondary Targets . | . . . . . . Shots Hit Robots 74 | . 21 5 . . 48 Core Hits 33 | . 10 2 . . 21 Critical Kills . | . . . . . . Critical Parts Destroyed 1 | . . . . . 1 Critical Strikes 1 | . . . . . 1 Destroy 1 | . . . . . 1 Melee Attacks 4 | . . . . . 4 Impact 4 | . . . . . 4 Slashing . | . . . . . . Piercing . | . . . . . . Sneak Attacks . | . . . . . . Combat Hostiles . | . . . . . . Follow-up Attacks . | . . . . . . Damage Inflicted 1090 | . 169 41 . . 880 Guns 620 | . 164 41 . . 415 Cannons . | . . . . . . Explosions 463 | . . . . . 463 Melee . | . . . . . . Ramming 7 | . 5 . . . 2 Kinetic 620 | . 164 41 . . 415 Thermal . | . . . . . . Explosive 463 | . . . . . 463 Electromagnetic . | . . . . . . Impact . | . . . . . . Slashing . | . . . . . . Piercing . | . . . . . . Highest Corruption . | . . . . . . Average Corruption . | . . . . . . Corruption Purged . | . . . . . . Corruption Blocked . | . . . . . . Overload Shots . | . . . . . . Overflow Damage 63 | . . . . . 63 Projectiles . | . . . . . . Explosions 63 | . . . . . 63 Melee . | . . . . . . Knockbacks . | . . . . . . Impact . | . . . . . . Kinetic . | . . . . . . Secondary . | . . . . . . Self-Inflicted Damage 114 | . . . . . 114 Shots 1 | . . . . . 1 Rammed 6 | . 4 . . . 2 Targets Rammed 7 | . 5 . . . 2 Kicked . | . . . . . . Crushed 1 | . 1 . . . . Highest Temperature 16 | . 1 . . . 16 Average Temperature 6 | . 1 . . . 9 Received Heat Transfer 261 | . 18 . . . 243 Siege Activations . | . . . . . . Martial Activations . | . . . . . . Shielding Activations . | . . . . . . Robots Disrupted . | . . . . . . Combat Hostiles . | . . . . . . Robots Corrupted . | . . . . . . Combat Hostiles . | . . . . . . Parts Fried . | . . . . . . Impact Corruptions . | . . . . . . Robots Melted . | . . . . . . Combat Hostiles . | . . . . . . Parts Melted . | . . . . . . Heat Transferred . | . . . . . . Parts Sabotaged . | . . . . . . Parts Stolen . | . . . . . . Parts Stripped . | . . . . . . Power Chain Reactions . | . . . . . . Alert | -11 -10 -10 -10 -9 -8 ------- Run | Yrd Mat Min Exi Min Mat Maximum Alert Level . | . . . . . . Low Security (%) 100 | 100 100 100 . 100 100 Level 1 . | . . . . . . Level 2 . | . . . . . . Level 3 . | . . . . . . Level 4 . | . . . . . . Level 5 . | . . . . . . High Security . | . . . . . . Max Security . | . . . . . . Peak Influence 133 | . 30 41 . . 133 Initial 8 | . . 8 . . . Average 15 | . 4 13 . . 42 Influence Increases 456 | . 133 61 . . 262 Destroy 0b10 Robot/C 160 | . 20 40 . . 100 Destroy 0b10 Robot/NC 45 | . 20 . . . 25 Destroy Leader 44 | . 4 . . . 40 Successful Hack 36 | . 14 . . . 22 Disable Machine 30 | . . 15 . . 15 Destroy Structure 36 | . . 6 . . 30 Partial Spotted 30 | . . . . . 30 Lose Combat Pursuer 75 | . 75 . . . . Influence Decreases 323 | . 111 52 31 . 129 Entered New Map 45 | . . 14 31 . . Time Decay 248 | . 111 38 . . 99 Lost Part 30 | . . . . . 30 Squads Dispatched 1 | . 1 . . . . Investigation 1 | . 1 . . . . Extermination . | . . . . . . Reinforcement . | . . . . . . Assault . | . . . . . . Garrison . | . . . . . . Intercept . | . . . . . . Searches Triggered . | . . . . . . Construction Impeded . | . . . . . . Haulers Reinforced . | . . . . . . Active Scanning Responses . | . . . . . . Cargo Convoy Interrupts . | . . . . . . Stealth | -11 -10 -10 -10 -9 -8 --------- Run | Yrd Mat Min Exi Min Mat Distress Signals 2 | . . 1 . . 1 Communications Jammed . | . . . . . . Distress Signals . | . . . . . . Times Spotted 23 | . 12 2 . 1 8 Peak Tracking Total 3 | . 3 1 . 1 3 Tactical Retreats 3 | . 3 . . . . Traps | -11 -10 -10 -10 -9 -8 ------- Run | Yrd Mat Min Exi Min Mat Traps Triggered 3 | . 3 . . . . Indirectly . | . . . . . . Trap Hack Attempts . | . . . . . . Triggered . | . . . . . . Disarmed . | . . . . . . Reprogrammed . | . . . . . . Reused . | . . . . . . Traps Extracted . | . . . . . . Installed . | . . . . . . Triggered . | . . . . . . Machines | -11 -10 -10 -10 -9 -8 ---------- Run | Yrd Mat Min Exi Min Mat Machines Disabled 3 | . . 1 1 . 1 Max in Single Turn 1 | . . 1 1 . 1 Machines Repaired . | . . . . . . Machines Dismantled . | . . . . . . Machines Sabotaged . | . . . . . . Overloaded Fab Kills . | . . . . . . Hacking | -11 -10 -10 -10 -9 -8 --------- Run | Yrd Mat Min Exi Min Mat Machines Accessed 13 | . 6 . 4 . 3 Terminals 9 | . 6 . . . 3 Fabricators . | . . . . . . Repair Stations . | . . . . . . Recycling Units . | . . . . . . Scanalyzers . | . . . . . . Garrison Access . | . . . . . . Total Hacks 24 | . 13 . 4 . 7 Successful 14 | . 5 . 4 . 5 Failed 10 | . 8 . . . 2 Catastrophic 1 | . 1 . . . . Database Lockouts . | . . . . . . Manual 9 | . 7 . . . 2 Terminals 20 | . 13 . . . 7 Fabricators . | . . . . . . Repair Stations . | . . . . . . Recycling Units . | . . . . . . Scanalyzers . | . . . . . . Garrison Access . | . . . . . . Terminal Hacks 12 | . 4 . 4 . 4 Record 4 | . . . 4 . . Robot Analysis 2 | . 2 . . . . Prototype ID Bank 1 | . 1 . . . . Branch Access Points 1 | . . . . . 1 Terminal Index 2 | . 1 . . . 1 Locate Traps 1 | . . . . . 1 Hauler Manifests 1 | . . . . . 1 Fabricator Hacks . | . . . . . . Repair Station Hacks . | . . . . . . Recycling Unit Hacks . | . . . . . . Scanalyzer . | . . . . . . Garrison Access Hacks . | . . . . . . Unauthorized Hacks 2 | . 1 . . . 1 Terminals 2 | . 1 . . . 1 Botnet 2 | . 1 . . . 1 Fabricators . | . . . . . . Repair Stations . | . . . . . . Recycling Units . | . . . . . . Scanalyzers . | . . . . . . Garrison Access . | . . . . . . Data Cores Recovered 1 | . . . . . 1 Used . | . . . . . . Hacking Detections 8 | . 6 . . . 2 Full Trace Events . | . . . . . . Feedback Events . | . . . . . . Feedback Blocked . | . . . . . . Robot Schematics Acquired . | . . . . . . Robots Built . | . . . . . . Authchips . | . . . . . . Time . | . . . . . . Total Robot Build Rating . | . . . . . . Part Schematics Acquired . | . . . . . . Parts Built . | . . . . . . Authchips . | . . . . . . Time . | . . . . . . Total Part Build Rating . | . . . . . . Parts Repaired . | . . . . . . Time . | . . . . . . Parts Recycled . | . . . . . . Recycled Matter . | . . . . . . Retrieved Matter . | . . . . . . Retrieved Components . | . . . . . . Parts Scanalyzed . | . . . . . . Part Schematics Acquired . | . . . . . . Parts Damaged . | . . . . . . Bothacking | -11 -10 -10 -10 -9 -8 ------------ Run | Yrd Mat Min Exi Min Mat Used RIF Installer . | . . . . . . Robots Hacked . | . . . . . . Non-combat . | . . . . . . Combat . | . . . . . . Robot Hacks Applied . | . . . . . . Relay Couplers Released . | . . . . . . Fabnet Peak Effective % . | . . . . . . Robots Rewired . | . . . . . . Allies Hacked . | . . . . . . Hacks Repelled . | . . . . . . Allies | -11 -10 -10 -10 -9 -8 -------- Run | Yrd Mat Min Exi Min Mat Total Allies . | . . . . . . Largest Group . | . . . . . . Highest-Rated Group . | . . . . . . Highest-Rated Ally . | . . . . . . Total Orders . | . . . . . . Ally Attacks . | . . . . . . Total Damage . | . . . . . . Kills . | . . . . . . Allies Corrupted . | . . . . . . Allies Melted . | . . . . . . Intel | -11 -10 -10 -10 -9 -8 ------- Run | Yrd Mat Min Exi Min Mat Active Infowar (turns) 1283 | . 529 141 491 47 75 Seismic 1283 | . 529 141 491 47 75 Robot Analysis Total 2 | . 2 . . . . Derelict Logs Recovered . | . . . . . . Drone Launches . | . . . . . . Drone Recoveries . | . . . . . . Exploration | -11 -10 -10 -10 -9 -8 ------------- Run | Yrd Mat Min Exi Min Mat Turns Passed 1521 | 20 549 141 491 47 273 Spaces Moved 2229 | 26 899 225 780 82 217 Core 2223 | 25 898 225 780 82 213 Treads 6 | 1 1 . . . 4 Legs . | . . . . . . Wheels . | . . . . . . Hover . | . . . . . . Flight . | . . . . . . Fastest Speed 50 | 50 50 50 50 50 50 Average Speed 55 | 54 50 50 61 50 60 Slowest Speed 160 | 160 160 50 100 50 160 Overloaded Moves . | . . . . . . Propulsion Burnouts . | . . . . . . Robots Hopped . | . . . . . . Potential Cave-ins . | . . . . . . Cave-ins Triggered . | . . . . . . Exploration Rate (%) 45 | 3 95 38 95 22 17 Regions Visited 5 Branch Regions 3 Pre-discovered Areas . | . . . . . . Known Exits Taken . | . . . . . . Unknown Exits Taken 5 | 1 1 1 1 1 . Scrap Searched . | . . . . . . Spaces Dug 10 | . . 6 . . 4 Terrain Destroyed 61 | . . 6 19 . 36 Melee 4 | . . . . . 4 Projectile . | . . . . . . AOE 57 | . . 6 19 . 32 Terrain Rammed . | . . . . . . Walls Destroyed . | . . . . . . Machines Disabled . | . . . . . . Actions | -11 -10 -10 -10 -9 -8 --------- Run | Yrd Mat Min Exi Min Mat Total 2407 | 29 966 246 785 87 294 Wait 87 | . 39 16 . 3 29 Move 2224 | 25 898 224 779 81 217 Hop . | . . . . . . Pick Up 6 | . 5 . . 1 . Fast Attach 10 | 4 3 . . . 3 Attach 1 | . . . . . 1 Detach . | . . . . . . Swap 6 | . . 2 1 1 2 Drop 3 | . . . . 1 2 Fire 59 | . 16 4 5 . 34 Melee 4 | . . . . . 4 Ram . | . . . . . . Kick . | . . . . . . Crush 7 | . 5 . . . 2 Escape Stasis . | . . . . . . Rewire . | . . . . . . Trap . | . . . . . . Miscellaneous . | . . . . . . Route ------- -11/Scrapyard -10/Materials (discovered 4 exits: [*Mat x3] / [*Min]) -10/Mines (discovered 2 exits: [*Mat] / *Exi) -10/Exiles (discovered 2 exits: [*Min x2]) -9/Mines -8/Materials (discovered 2 exits: Sto x2) History --------- Turn | Location | Event 6 | -11/Scrapyard | Discovered new exit (range 15) 21 | -11/Scrapyard | Entered Materials 309 | -10/Materials | Build established: Mutant 374 | -10/Materials | Discovered new exit (range 12) 383 | -10/Materials | Discovered new exit (range 16) 558 | -10/Materials | Discovered new exit (range 14) 558 | -10/Materials | Discovered new exit (range 13) 570 | -10/Materials | Entered Mines 576 | -10/Mines | Met a Derelict bent on vengeance 604 | -10/Mines | Discovered new exit (range 12) 709 | -10/Mines | Deemed a non-threat by the Exiles lab entrance 709 | -10/Mines | Discovered new exit (range 5) 711 | -10/Mines | Entered Exiles 711 | -10/Exiles | Found Exiles lab abandoned 719 | -10/Exiles | Discovered new exit (range 15) 1192 | -10/Exiles | Discovered new exit (range 12) 1202 | -10/Exiles | Entered Mines 1218 | -9/Mines | Discovered new exit (range 7) 1233 | -9/Mines | Joined a pair of Derelicts in attacking an 0b10 outpost 1249 | -9/Mines | Entered Materials 1249 | -8/Materials | Evolved 4 slots: Propulsion x3, Utility x1 1369 | -8/Materials | Identified exit to Storage 1522 | -8/Materials | Self-destructed Last Messages --------------- 01491_ K-01 Serf collects debris. 01494_ K-01 Serf cleans the Nuclear Reactor. 01509_ Nuclear Reactor explodes. 01509_ Lgt. Treads destroyed. 01509_ Destroyed Lgt. Treads. 01509_ K-01 Serf destroyed. 01509_ R-06 Scavenger destroyed. 01509_ Y-45 Defender destroyed. 01509_ K-01 Serf destroyed. 01511_ K-01 Serf collects debris. 01513_ The unstable cave ceiling collapses. 01513_ G-47 Trooper suffers critical hit (Destroy). 01513_ Destroyed Aluminum Leg. 01514_ K-01 Serf collects debris. 01516_ Lgt. Assault Rifle destroyed. 01520_ G-47 Trooper destroyed. 01521_ U-05 Engineer lays Concrete. 01522_ The unstable cave ceiling collapses. Map ----- +----------------------------------------------------+ | ?????????????????????????????????????????????????? | | ?????????????????????????????????????????????????? | | ?????????????????????????????????????????????????? | | ?????????????????????????????????????????????????? | | ?????????????????????????????????????????????????? | | ?????????????????????????????????????????????????? | | ?????????????????????????????????????????????????? | | ?????????????????????????????????????????????????? | | ?????????????????????????????????????????????????? | | ?????????????????????????????????????????????????? | | ?????????????????????????????????????????????????? | | ?????????????????????????#####???????????????????? | | ????????????????????????? #???????????????????? | | ????????????????????????" #???????????????????? | | ????????????????????????" % #???????????????????? | | ????????????????????+???" #???????????????????? | | ????????????????????# #???????????????????? | | ????????????????????# """ #???????????????????? | | ????????????????????# """ #???????????????????? | | ????????????????????# """u #???????????????????? | | ???????????????????## #???????????????????? | | ???????????######### # #???????????????????? | | ?????????? / ! ! #???????????????????? | | ????????????? % % #???????????????????? | | ???????????????? """ #???????????????????? | | ????????????????! """ @ #???????????????????? | | ????????????# !! """ % # #???????????????????? | | ????????????# !! %! ####????????????????? | | ???????????######### % #????????????????? | | ???????????# + % #????????????????? | | ???????????# # a + ?????????? | | ???????????# # """ # ""???????????? | | ???????????# # """ #????????????????? | | ???????????# #k ^ """ ##????????????????? | | ???????????# "" # #?????????????????? | | ???????????# "T # #?????????????????? | | ???????????# "" # """ #?????????????????? | | ???????????# # """ #?????????????????? | | ???????????###### ### ^""" #?????????????????? | | ???????????###### #?# ###########???????? | | ???????????# + #?# # #???????? | | ???????????# # #?# """ # """ T #???????? | | ???????????# # #?# """ # """ #???????? | | ???????????# + #?# """ # """ #???????? | | ???????????# ###?# + #???????? | | ???????????# #???# # ! ##??????? | | ???????????# #???# """ ## #??????? | | ???????????######???## """ ## ##??????? | | ?????????????????##### """ ######+#####???????? | | ?????????????????#]] # % T #?????????? | +----------------------------------------------------+ Best States ------------- Heat Dissipation 31 Energy Generation 5 Energy Capacity 100 Matter Stores 300 Matter Capacity 300 Sight Range 16 Terrain Scan Density 10 Evasion (%) 50 Targeting Accuracy 5 Recoil Reduction 2 Item Schematics ----------------- None Robot Schematics ------------------ None Fabricated ------------ Nothing Repaired ---------- Nothing Alien Tech Used ----------------- None Achievements -------------- None Challenges ------------ No Salvage Game ------ Seed BeamLaserWarhead Manual? 0 Play Time 00:20:01 Cumulative 645.2 hours Start 2025.06.23 @ 21:33:57 End 2025.06.23 @ 21:54:37 Sessions 1 Manual Loads 0 Difficulty Rogue Special Mode None Game No. 151 Rogue 111 Adventurer 4 Explorer 36 Win Type - Total 54 Types 31/6/5/2/2/3/2/1/1/1 Lore% 79 Gallery% 81 Achievement% 92 Wizard Run 0 Options --------- Layout 2 ASCII 0 Keyboard 1 Movement Vi Keybinds 0 Fullscreen 2 Font 32/SmallcapsGlow Map View 50x44 Zoom Use 0% Tactical HUD 1 Map Filters NONE Filters NONE Steam 1 RUN: 492772d4-c0d4-4d70-9329-cafcbecc6681